fUSD/lending_fUSD_20250804
["ID","MTS","AMOUNT","RATE_DAILY","PERIOD"]
[377179702,1754268678763,-682.6,0.00049863,120]
[377179703,1754268678773,-688.82,0.00049863,120]
[377179704,1754268678782,-400.0,0.00049863,120]
[377179705,1754268678792,-400.0,0.00049863,120]
[377179706,1754268678801,-400.0,0.00049863,120]
[377179707,1754268678811,-400.0,0.00049863,120]
[377179708,1754268678820,-400.0,0.00049863,120]
[377179709,1754268678830,-400.0,0.00049863,120]
[377179710,1754268678842,-400.0,0.00049863,120]
[377179711,1754268678852,-400.0,0.00049863,120]
[377179712,1754268678862,-970.46,0.00049863,120]
[377179713,1754268678872,-153.031442,0.00049863,120]
[377179714,1754268678882,-400.0,0.00049863,120]
[377179715,1754268678892,-400.0,0.00049863,120]
[377179716,1754268678901,-151.0,0.00049863,120]
[377179717,1754268678911,-400.0,0.00049863,120]
[377179718,1754268678921,-400.0,0.00049863,120]
[377179719,1754268678930,-400.0,0.00049863,120]
[377179720,1754268678940,-1380.71,0.00049863,120]
[377179721,1754268678950,-535.75,0.00049863,120]
[377179722,1754268678960,-777.09,0.00049863,120]
[377179723,1754268678970,-400.0,0.00049863,120]
[377179724,1754268678979,-400.0,0.00049863,120]
[377179725,1754268678989,-821.49,0.00049863,120]
[377179726,1754268678999,-1683.71,0.00049863,120]
[377179727,1754268679009,-400.0,0.00049863,120]
[377179728,1754268679018,-400.0,0.00049863,120]
[377179729,1754268679028,-400.0,0.00049863,120]
[377179730,1754268679038,-400.0,0.00049863,120]
[377179731,1754268679047,-400.0,0.00049863,120]
[377179732,1754268679056,-400.0,0.00049863,120]
[377179733,1754268679066,-192.21859562,0.00049863,120]
[377179734,1754268679076,-400.0,0.00049863,120]
[377179735,1754268679087,-441.1,0.00049863,120]
[377179736,1754268679097,-940.26,0.00049863,120]
[377179737,1754268679106,-400.0,0.00049863,120]
[377179738,1754268679116,-1587.13,0.00049863,120]
[377179739,1754268679126,-400.0,0.00049863,120]
[377179740,1754268679135,-716.15,0.00049863,120]
[377179741,1754268679144,-400.0,0.00049863,120]
[377179742,1754268679154,-400.0,0.00049863,120]
[377179743,1754268679164,-400.0,0.00049863,120]
[377179744,1754268679174,-1505.99,0.00049863,120]
[377179745,1754268679183,-1445.81,0.00049863,120]
[377179746,1754268679194,-1532.73,0.00049863,120]
[377179747,1754268679204,-400.0,0.00049863,120]
[377179748,1754268679213,-400.0,0.00049863,120]
[377179749,1754268679222,-400.0,0.00049863,120]
[377179750,1754268679232,-400.0,0.00049863,120]
[377179751,1754268679241,-400.0,0.00049863,120]
[377179752,1754268679250,-400.0,0.00049863,120]
[377179753,1754268679259,-475.81,0.00049863,120]
[377179754,1754268679268,-500.0,0.00049863,120]
[377179755,1754268679277,-401.83872112,0.00049863,120]
[377179756,1754268679286,-811.21,0.00049863,120]
[377179757,1754268679296,-779.09,0.00049863,120]
[377179758,1754268679307,-628.6,0.00049863,120]
[377179759,1754268679316,-400.0,0.00049863,120]
[377179760,1754268679328,-583.94,0.00049863,120]
[377179761,1754268679339,-533.58750642,0.00049863,120]
[377179762,1754268679348,-400.0,0.00049863,120]
[377179763,1754268679358,-1655.42,0.00049863,120]
[377179764,1754268679367,-400.0,0.00049863,120]
[377179765,1754268679376,-400.0,0.00049863,120]
[377179766,1754268679386,-400.0,0.00049863,120]
[377179767,1754268679395,-400.0,0.00049863,120]
[377179768,1754268679404,-400.0,0.00049863,120]
[377179769,1754268679413,-519.83,0.00049863,120]
[377179770,1754268679422,-400.0,0.00049863,120]
[377179771,1754268679432,-738.64,0.00049863,120]
[377179772,1754268679440,-400.0,0.00049863,120]
[377179773,1754268679450,-400.0,0.00049863,120]
[377179774,1754268679458,-400.0,0.00049863,120]
[377179775,1754268679467,-1676.12,0.00049863,120]
[377179776,1754268679477,-400.0,0.00049863,120]
[377179777,1754268679486,-400.0,0.00049863,120]
[377179778,1754268679496,-400.0,0.00049863,120]
[377179779,1754268679505,-400.0,0.00049863,120]
[377179780,1754268679514,-400.0,0.00049863,120]
[377179781,1754268679524,-907.07,0.00049863,120]
[377179782,1754268679534,-400.0,0.00049863,120]
[377179783,1754268679544,-400.0,0.00049863,120]
[377179784,1754268679554,-909.63,0.00049863,120]
[377179785,1754268679563,-1111.36,0.00049863,120]
[377179786,1754268679572,-400.0,0.00049863,120]
[377179787,1754268679581,-400.0,0.00049863,120]
[377179788,1754268679591,-673.74,0.00049863,120]
[377179789,1754268679600,-483.68,0.00049863,120]
[377179790,1754268679610,-864.65,0.00049863,60]
[377179791,1754268679619,-400.0,0.00049863,120]
[377179792,1754268679628,-400.0,0.00049863,120]
[377179793,1754268679638,-400.0,0.00049863,120]
[377179794,1754268679647,-1503.61,0.00049863,120]
[377179795,1754268679656,-400.0,0.00049863,120]
[377179796,1754268679665,-400.0,0.00049863,120]
[377179797,1754268679675,-400.0,0.00049863,120]
[377179798,1754268679685,-400.0,0.00049863,120]
[377179799,1754268679695,-400.0,0.00049863,120]
[377179800,1754268679706,-415.28,0.00049863,120]
[377179801,1754268679715,-434.63,0.00049863,120]
[377179802,1754268679928,-400.0,0.00049863,120]
[377179803,1754268679945,-478.68,0.00049863,120]
[377179804,1754268679954,-400.0,0.00049863,120]
[377179805,1754268679964,-762.05,0.00049863,120]
[377179806,1754268679974,-400.0,0.00049863,120]
[377179807,1754268679983,-400.0,0.00049863,120]
[377179808,1754268679992,-400.0,0.00049863,120]
[377179809,1754268680004,-400.0,0.00049863,120]
[377179810,1754268680015,-400.0,0.00049863,120]
[377179811,1754268680026,-400.0,0.00049863,120]
[377179812,1754268680036,-867.68,0.00049863,120]
[377179813,1754268680046,-400.0,0.00049863,120]
[377179814,1754268680055,-400.0,0.00049863,120]
[377179815,1754268680064,-460.0,0.00049863,120]
[377179816,1754268680074,-234.038804,0.00049863,120]
[377179817,1754268680084,-1529.64,0.00049863,120]
[377179818,1754268680093,-1514.52,0.00049863,120]
[377179819,1754268680103,-888.99,0.00049863,120]
[377179820,1754268680113,-234.038804,0.00049863,120]
[377179821,1754268680123,-400.0,0.00049863,120]
[377179822,1754268680132,-400.0,0.00049863,120]
[377179823,1754268680141,-400.0,0.00049863,120]
[377179824,1754268680151,-1572.71,0.00049863,120]
[377179825,1754268680160,-400.0,0.00049863,120]
[377179826,1754268680170,-400.0,0.00049863,120]
[377179827,1754268680179,-667.29,0.00049863,120]
[377179828,1754268680189,-560.16,0.00049863,120]
[377179829,1754268680199,-400.0,0.00049863,120]
[377179830,1754268680208,-400.0,0.00049863,120]
[377179831,1754268680217,-400.0,0.00049863,120]
[377179832,1754268680226,-400.0,0.00049863,120]
[377179833,1754268680236,-974.46,0.00049863,120]
[377179834,1754268680245,-4405.19,0.00049863,120]
[377179835,1754268680254,-847.66,0.00049863,120]
[377179836,1754268680264,-400.0,0.00049863,120]
[377179837,1754268680274,-1044.37,0.00049863,120]
[377179838,1754268680283,-1027.62,0.00049863,120]
[377179839,1754268680293,-463.32504398,0.00049863,120]
[377179840,1754268680302,-400.0,0.00049863,120]
[377179841,1754268680311,-400.0,0.00049863,120]
[377179842,1754268680320,-400.0,0.00049863,120]
[377179843,1754268680330,-254.95544059,0.00049863,2]
[377179844,1754268680340,-400.0,0.00049863,120]
[377179845,1754268680349,-400.0,0.00049863,120]
[377179846,1754268680359,-411.34,0.00049863,120]
[377179847,1754268680369,-773.44,0.00049863,120]
[377179848,1754268680379,-463.81215169,0.00049863,120]
[377179849,1754268680388,-400.0,0.00049863,120]
[377179850,1754268680398,-152.84084828,0.00049863,120]
[377179851,1754268680407,-1164.51,0.00049863,120]
[377179852,1754268680417,-400.0,0.00049863,120]
[377179853,1754268680427,-952.78,0.00049863,120]
[377179854,1754268680436,-400.0,0.00049863,120]
[377179855,1754268680446,-400.0,0.00049863,120]
[377179856,1754268680455,-400.0,0.00049863,120]
[377179857,1754268680465,-681.3,0.00049863,120]
[377179858,1754268680475,-400.0,0.00049863,120]
[377179859,1754268680484,-400.0,0.00049863,120]
[377179860,1754268680494,-400.0,0.00049863,120]
[377179861,1754268680503,-1226.55,0.00049863,120]
[377179862,1754268680513,-1342.41,0.00049863,30]
[377179863,1754268680523,-400.0,0.00049863,120]
[377179864,1754268680532,-1018.3,0.00049863,120]
[377179865,1754268680541,-400.0,0.00049863,120]
[377179866,1754268680551,-400.0,0.00049863,120]
[377179867,1754268680560,-400.0,0.00049863,120]
[377179868,1754268680569,-400.0,0.00049863,120]
[377179869,1754268680578,-400.0,0.00049863,120]
[377179870,1754268680591,-593.66,0.00049863,120]
[377179871,1754268680600,-621.0,0.00049863,120]
[377179872,1754268680611,-400.0,0.00049863,120]
[377179873,1754268680621,-1037.22,0.00049863,120]
[377179874,1754268680630,-613.4,0.00049863,120]
[377179875,1754268680641,-400.0,0.00049863,120]
[377179876,1754268680654,-400.0,0.00049863,120]
[377179877,1754268680664,-665.48,0.00049863,120]
[377179878,1754268680673,-1384.85,0.00049863,120]
[377179879,1754268680686,-512.74,0.00049863,120]
[377179880,1754268680696,-400.0,0.00049863,120]
[377179881,1754268680706,-400.0,0.00049863,120]
[377179882,1754268680715,-400.0,0.00049863,120]
[377179883,1754268680724,-400.0,0.00049863,120]
[377179884,1754268680734,-1250.2,0.00049863,120]
[377179885,1754268680743,-400.0,0.00049863,120]
[377179886,1754268680754,-400.0,0.00049863,120]
[377179887,1754268680763,-1000.0,0.00049863,120]
[377179888,1754268680772,-1796.88,0.00049863,120]
[377179889,1754268680781,-754.08,0.00049863,120]
[377179890,1754268680791,-400.0,0.00049863,120]
[377179891,1754268680800,-530.85,0.00049863,120]
[377179892,1754268680809,-461.92285485,0.00049863,120]
[377179893,1754268680818,-851.82,0.00049863,120]
[377179894,1754268680828,-533.01,0.00049863,120]
[377179895,1754268680840,-340.0,0.00049863,120]
[377179896,1754268680850,-400.0,0.00049863,120]
[377179897,1754268680860,-400.0,0.00049863,120]
[377179898,1754268680870,-668.86,0.00049863,120]
[377179899,1754268680879,-400.0,0.00049863,120]
[377179900,1754268680888,-1655.2,0.00049863,120]
[377179901,1754268680897,-400.0,0.00049863,120]
[377179902,1754268680907,-400.0,0.00049863,120]
[377179903,1754268680916,-427.9,0.00049863,120]
[377179904,1754268680925,-414.02,0.00049863,120]
[377179905,1754268680935,-151.0,0.00049863,120]
[377179906,1754268680944,-928.38,0.00049863,120]
[377179907,1754268680954,-400.0,0.00049863,120]
[377179908,1754268680963,-400.0,0.00049863,120]
[377179909,1754268680973,-400.0,0.00049863,120]
[377179910,1754268680983,-400.0,0.00049863,120]
[377179911,1754268680993,-400.0,0.00049863,120]
[377179912,1754268681002,-400.0,0.00049863,120]
[377179913,1754268681012,-400.0,0.00049863,120]
[377179914,1754268681023,-400.0,0.00049863,7]
[377179915,1754268681033,-400.0,0.00049863,120]
[377179916,1754268681043,-400.0,0.00049863,120]
[377179917,1754268681052,-400.0,0.00049863,120]
[377179918,1754268681062,-1098.74,0.00049863,120]
[377179919,1754268681072,-749.65,0.00049863,120]
[377179920,1754268681081,-1053.29,0.00049863,120]
[377179921,1754268681094,-400.0,0.00049863,120]
[377179922,1754268681103,-188.57659649,0.00049863,120]
[377179923,1754268681112,-778.27,0.00049863,120]
[377179924,1754268681122,-400.0,0.00049863,120]
[377179925,1754268681131,-400.0,0.00049863,120]
[377179926,1754268681143,-901.5,0.00049863,120]
[377179927,1754268681153,-820.28,0.00049863,120]
[377179928,1754268681163,-400.0,0.00049863,120]
[377179929,1754268681173,-400.0,0.00049863,120]
[377179930,1754268681182,-400.0,0.00049863,120]
[377179931,1754268681191,-400.0,0.00049863,120]
[377179932,1754268681200,-533.79,0.00049863,120]
[377179933,1754268681209,-400.0,0.00049863,120]
[377179934,1754268681218,-400.0,0.00049863,120]
[377179935,1754268681227,-494.87,0.00049863,120]
[377179936,1754268681237,-813.08,0.00049863,120]
[377179937,1754268681246,-1446.37,0.00049863,120]
[377179938,1754268681263,-400.0,0.00049863,120]
[377179939,1754268681272,-400.0,0.00049863,120]
[377179940,1754268681281,-400.0,0.00049863,120]
[377179941,1754268681290,-400.0,0.00049863,120]
[377179942,1754268681299,-629.0,0.00049863,120]
[377179943,1754268681309,-639.97,0.00049863,120]
[377179944,1754268681318,-993.99,0.00049863,120]
[377179945,1754268681327,-720.19,0.00049863,120]
[377179946,1754268681338,-667.87,0.00049863,60]
[377179947,1754268681347,-442.50791477,0.00049863,120]
[377179948,1754268681358,-400.0,0.00049863,120]
[377179949,1754268681367,-400.0,0.00049863,120]
[377179950,1754268681376,-400.0,0.00049863,120]
[377179951,1754268681385,-400.0,0.00049863,120]
[377179952,1754268681395,-220.556036,0.00049863,120]
[377179953,1754268681405,-400.0,0.00049863,120]
[377179954,1754268681414,-400.0,0.00049863,120]
[377179955,1754268681423,-1042.81,0.00049863,120]
[377179956,1754268681432,-1607.03,0.00049863,120]
[377179957,1754268681442,-400.0,0.00049863,120]
[377179958,1754268681451,-520.0,0.00049863,120]
[377179959,1754268681461,-151.0,0.00049863,120]
[377179960,1754268681470,-400.0,0.00049863,120]
[377179961,1754268681480,-220.556036,0.00049863,120]
[377179962,1754268681489,-693.25,0.00049863,120]
[377179963,1754268681499,-791.76,0.00049863,120]
[377179964,1754268681508,-400.0,0.00049863,120]
[377179965,1754268681518,-902.83,0.00049863,120]
[377179966,1754268681527,-466.02745168,0.00049863,120]
[377179967,1754268681536,-400.0,0.00049863,120]
[377179968,1754268681545,-240.020792,0.00049863,120]
[377179969,1754268681554,-208.47033392,0.00049863,120]
[377179970,1754268681564,-400.0,0.00049863,120]
[377179971,1754268681574,-400.0,0.00049863,120]
[377179972,1754268681583,-400.0,0.00049863,120]
[377179973,1754268681593,-400.0,0.00049863,120]
[377179974,1754268681602,-562.43,0.00049863,120]
[377179975,1754268681611,-161.42193586,0.00049863,120]
[377179976,1754268681621,-715.25,0.00049863,120]
[377179977,1754268681630,-400.0,0.00049863,120]
[377179978,1754268681640,-1235.78,0.00049863,120]
[377179979,1754268681649,-400.0,0.00049863,120]
[377179980,1754268681659,-400.0,0.00049863,120]
[377179981,1754268681668,-418.35,0.00049863,120]
[377179982,1754268681677,-882.13,0.00049863,120]
[377179983,1754268681690,-400.0,0.00049863,120]
[377179984,1754268681699,-400.0,0.00049863,120]
[377179985,1754268681709,-400.0,0.00049863,120]
[377179986,1754268681718,-426.62,0.00049863,120]
[377179987,1754268681730,-360.73310143,0.00049863,120]
[377179988,1754268681739,-400.0,0.00049863,120]
[377179989,1754268681749,-400.0,0.00049863,120]
[377179990,1754268681761,-1619.25,0.00049863,120]
[377179991,1754268681770,-400.0,0.00049863,120]
[377179992,1754268681780,-1436.52,0.00049863,120]
[377179993,1754268681790,-835.63,0.00049863,120]
[377179994,1754268681799,-400.0,0.00049863,120]
[377179995,1754268681809,-400.0,0.00049863,120]
[377179996,1754268681819,-400.0,0.00049863,120]
[377179997,1754268681829,-400.0,0.00049863,120]
[377179998,1754268681839,-151.0,0.00049863,120]
[377179999,1754268681849,-400.0,0.00049863,120]
[377180000,1754268681859,-621.2,0.00049863,120]
[377180001,1754268681869,-894.51,0.00049863,120]
[377180002,1754268681878,-1373.98,0.00049863,120]
[377180003,1754268681887,-1018.59,0.00049863,120]
[377180004,1754268681897,-400.0,0.00049863,120]
[377180005,1754268681906,-400.0,0.00049863,120]
[377180006,1754268681916,-456.11,0.00049863,120]
[377180007,1754268681926,-1531.36,0.00049863,120]
[377180008,1754268681935,-881.26,0.00049863,120]
[377180009,1754268681945,-400.0,0.00049863,120]
[377180010,1754268681954,-853.22,0.00049863,120]
[377180011,1754268681964,-1010.93,0.00049863,120]
[377180012,1754268681974,-652.92,0.00049863,120]
[377180013,1754268681984,-1008.77,0.00049863,120]
[377180014,1754268681994,-447.52,0.00049863,120]
[377180015,1754268682004,-400.0,0.00049863,120]
[377180016,1754268682014,-400.0,0.00049863,120]
[377180017,1754268682024,-400.0,0.00049863,120]
[377180018,1754268682033,-400.0,0.00049863,120]
[377180019,1754268682043,-400.0,0.00049863,120]
[377180020,1754268682054,-223.19204473,0.00049863,120]
[377180021,1754268682063,-1051.17,0.00049863,120]
[377180022,1754268682073,-400.0,0.00049863,120]
[377180023,1754268682083,-400.0,0.00049863,120]
[377180024,1754268682094,-1093.28,0.00049863,120]
[377180025,1754268682103,-400.0,0.00049863,120]
[377180026,1754268682112,-1544.86,0.00049863,120]
[377180027,1754268682123,-702.82,0.00049863,120]
[377180028,1754268682132,-544.8,0.00049863,120]
[377180029,1754268682142,-400.0,0.00049863,120]
[377180030,1754268682151,-400.0,0.00049863,120]
[377180031,1754268682162,-400.0,0.00049863,120]
[377180032,1754268682172,-552.48,0.00049863,120]
[377180033,1754268682181,-400.0,0.00049863,120]
[377180034,1754268682190,-1553.31,0.00049863,120]
[377180035,1754268682200,-400.0,0.00049863,120]
[377180036,1754268682209,-1124.67,0.00049863,120]
[377180037,1754268682218,-798.23,0.00049863,120]
[377180038,1754268682227,-400.0,0.00049863,120]
[377180039,1754268682237,-400.0,0.00049863,120]
[377180040,1754268682246,-608.06,0.00049863,120]
[377180041,1754268682255,-1527.9,0.00049863,120]
[377180042,1754268682264,-400.0,0.00049863,120]
[377180043,1754268682274,-400.0,0.00049863,120]
[377180044,1754268682283,-947.85,0.00049863,120]
[377180045,1754268682292,-981.29,0.00049863,120]
[377180046,1754268682302,-400.0,0.00049863,120]
[377180047,1754268682311,-987.27,0.00049863,120]
[377180048,1754268682321,-400.0,0.00049863,120]
[377180049,1754268682330,-400.0,0.00049863,120]
[377180050,1754268682342,-414.50513085,0.00049863,120]
[377180051,1754268682351,-400.0,0.00049863,120]
[377180052,1754268682361,-400.0,0.00049863,120]
[377180053,1754268682370,-520.59,0.00049863,120]
[377180054,1754268682463,-400.0,0.00049863,120]
[377180055,1754268682472,-749.39,0.00049863,120]
[377180056,1754268682482,-1111.61,0.00049863,120]
[377180057,1754268682491,-977.04,0.00049863,120]
[377180058,1754268682500,-400.0,0.00049863,120]
[377180059,1754268682509,-400.0,0.00049863,120]
[377180060,1754268682518,-400.0,0.00049863,120]
[377180061,1754268682527,-400.0,0.00049863,120]
[377180062,1754268682536,-400.0,0.00049863,120]
[377180063,1754268682545,-400.0,0.00049863,120]
[377180064,1754268682554,-400.0,0.00049863,120]
[377180065,1754268682563,-858.32,0.00049863,120]
[377180066,1754268682572,-400.0,0.00049863,120]
[377180067,1754268682581,-524.03,0.00049863,120]
[377180068,1754268682592,-400.0,0.00049863,120]
[377180069,1754268682602,-400.0,0.00049863,120]
[377180070,1754268682610,-400.0,0.00049863,120]
[377180071,1754268682620,-400.0,0.00049863,120]
[377180072,1754268682629,-637.78,0.00049863,120]
[377180073,1754268682639,-1637.94,0.00049863,120]
[377180074,1754268682648,-1658.43,0.00049863,120]
[377180075,1754268682657,-400.0,0.00049863,120]
[377180076,1754268682665,-400.0,0.00049863,120]
[377180077,1754268682674,-400.0,0.00049863,120]
[377180078,1754268682685,-483.41,0.00049863,120]
[377180079,1754268682695,-151.0,0.00049863,120]
[377180080,1754268682704,-4463.09,0.00049863,120]
[377180081,1754268682713,-598.15,0.00049863,120]
[377180082,1754268682723,-400.0,0.00049863,120]
[377180083,1754268682731,-400.0,0.00049863,120]
[377180084,1754268682741,-1021.73,0.00049863,120]
[377180085,1754268682750,-400.0,0.00049863,120]
[377180086,1754268682759,-400.0,0.00049863,120]
[377180087,1754268682769,-400.0,0.00049863,120]
[377180088,1754268682777,-400.0,0.00049863,120]
[377180089,1754268682786,-588.48,0.00049863,120]
[377180090,1754268682795,-754.89,0.00049863,120]
[377180091,1754268682804,-400.0,0.00049863,120]
[377180092,1754268682814,-2668.08,0.00049863,120]
[377180093,1754268682823,-1584.6,0.00049863,120]
[377180094,1754268682832,-1209.71,0.00049863,120]
[377180095,1754268682843,-400.0,0.00049863,120]
[377180096,1754268682852,-1362.53,0.00049863,120]
[377180097,1754268682862,-1522.49,0.00049863,120]
[377180098,1754268682871,-400.0,0.00049863,120]
[377180099,1754268682881,-538.34756425,0.00049863,120]
[377180100,1754268682890,-647.61,0.00049863,120]
[377180101,1754268682899,-801.6,0.00049863,120]
[377180102,1754268682909,-1682.47,0.00049863,120]
[377180103,1754268682918,-400.0,0.00049863,120]
[377180104,1754268682927,-2375.94,0.00049863,120]
[377180105,1754268682936,-856.16,0.00049863,120]
[377180106,1754268682946,-1262.21,0.00049863,120]
[377180107,1754268682955,-1150.07,0.00049863,120]
[377180108,1754268682964,-400.0,0.00049863,120]
[377180109,1754268682974,-1014.08,0.00049863,120]
[377180110,1754268682983,-400.0,0.00049863,120]
[377180111,1754268682993,-604.67,0.00049863,120]
[377180112,1754268683002,-400.0,0.00049863,120]
[377180113,1754268683011,-776.57,0.00049863,120]
[377180114,1754268683020,-400.0,0.00049863,120]
[377180115,1754268683030,-496.71,0.00049863,120]
[377180116,1754268683039,-400.0,0.00049863,120]
[377180117,1754268683048,-633.78,0.00049863,120]
[377180118,1754268683057,-400.0,0.00049863,120]
[377180119,1754268683066,-3407.72,0.00049863,120]
[377180120,1754268683075,-1700.65,0.00049863,120]
[377180121,1754268683084,-860.5,0.00049863,120]
[377180122,1754268683094,-400.0,0.00049863,120]
[377180123,1754268683104,-400.0,0.00049863,120]
[377180124,1754268683113,-400.0,0.00049863,120]
[377180125,1754268683122,-5122.26,0.00049863,118]
[377180126,1754268683131,-400.0,0.00049863,120]
[377180127,1754268683141,-400.0,0.00049863,120]
[377180128,1754268683150,-400.0,0.00049863,120]
[377180129,1754268683159,-400.0,0.00049863,120]
[377180130,1754268683168,-400.0,0.00049863,120]
[377180131,1754268683178,-400.0,0.00049863,120]
[377180132,1754268683187,-400.0,0.00049863,120]
[377180133,1754268683197,-400.0,0.00049863,120]
[377180134,1754268683207,-400.0,0.00049863,120]
[377180135,1754268683216,-400.0,0.00049863,120]
[377180136,1754268683225,-400.0,0.00049863,120]
[377180137,1754268683234,-400.0,0.00049863,120]
[377180138,1754268683243,-389.34882943,0.00049863,120]
[377180139,1754268683252,-400.0,0.00049863,120]
[377180140,1754268683261,-400.0,0.00049863,120]
[377180141,1754268683270,-400.0,0.00049863,120]
[377180142,1754268683280,-2275.99,0.00049863,120]
[377180143,1754268683289,-400.0,0.00049863,120]
[377180144,1754268683298,-400.0,0.00049863,120]
[377180145,1754268683307,-400.0,0.00049863,120]
[377180146,1754268683316,-747.61,0.00049863,120]
[377180147,1754268683325,-400.0,0.00049863,120]
[377180148,1754268683335,-504.1,0.00049863,120]
[377180149,1754268683345,-400.0,0.00049863,120]
[377180150,1754268683354,-6663.96,0.00049863,120]
[377180151,1754268683363,-400.0,0.00049863,120]
[377180152,1754268683373,-151.0,0.00049863,120]
[377180153,1754268683382,-400.0,0.00049863,120]
[377180154,1754268683391,-422.64,0.00049863,120]
[377180155,1754268683401,-400.0,0.00049863,120]
[377180156,1754268683410,-400.0,0.00049863,120]
[377180157,1754268683419,-400.0,0.00049863,120]
[377180158,1754268683427,-1244.75,0.00049863,120]
[377180159,1754268683437,-759.38,0.00049863,120]
[377180160,1754268683446,-400.0,0.00049863,120]
[377180161,1754268683455,-400.0,0.00049863,120]
[377180162,1754268683465,-1263.16,0.00049863,120]
[377180163,1754268683474,-1400.47,0.00049863,120]
[377180164,1754268683483,-400.0,0.00049863,120]
[377180165,1754268683493,-965.49,0.00049863,120]
[377180166,1754268683502,-377.10779236,0.00049863,120]
[377180167,1754268683511,-523.05668655,0.00049863,120]
[377180168,1754268683520,-1286.36,0.00049863,120]
[377180169,1754268683530,-400.0,0.00049863,120]
[377180170,1754268683539,-911.39,0.00049863,120]
[377180171,1754268683548,-400.0,0.00049863,120]
[377180172,1754268683557,-400.0,0.00049863,120]
[377180173,1754268683567,-942.83,0.00049863,120]
[377180174,1754268683575,-400.0,0.00049863,120]
[377180175,1754268683584,-400.0,0.00049863,120]
[377180176,1754268683595,-89208.25,0.00049863,120]
[377180177,1754268683605,-400.0,0.00049863,120]
[377180178,1754268683614,-400.0,0.00049863,120]
[377180179,1754268683623,-842.57,0.00049863,120]
[377180180,1754268683632,-1359.66,0.00049863,120]
[377180181,1754268683641,-400.0,0.00049863,120]
[377180182,1754268683651,-400.0,0.00049863,120]
[377180183,1754268683660,-852.42,0.00049863,120]
[377180184,1754268683670,-400.0,0.00049863,120]
[377180185,1754268683680,-1413.4,0.00049863,120]
[377180186,1754268683692,-400.0,0.00049863,120]
[377180187,1754268683701,-899.08,0.00049863,120]
[377180188,1754268683711,-1253.81,0.00049863,120]
[377180189,1754268683720,-400.0,0.00049863,120]
[377180190,1754268683731,-469.57,0.00049863,120]
[377180191,1754268683741,-400.0,0.00049863,120]
[377180192,1754268683750,-643.48,0.00049863,120]
[377180193,1754268683760,-498.37,0.00049863,120]
[377180194,1754268683769,-400.0,0.00049863,120]
[377180195,1754268683778,-400.0,0.00049863,120]
[377180196,1754268683788,-480.76,0.00049863,120]
[377180197,1754268683798,-1333.92,0.00049863,120]
[377180198,1754268683807,-1637.38,0.00049863,120]
[377180199,1754268683816,-400.18,0.00049863,120]
[377180200,1754268683826,-400.0,0.00049863,120]
[377180201,1754268683837,-1605.6,0.00049863,120]